bitfinex/quotes_ETHUSD_20250511
["timestamp","ask_amount","ask_price","bid_price","bid_amount"]
[1747005825259,3.99308008,2504.4,2504.3,0.11711389]
[1747005825646,3.99329127,2504.2,2504.1,0.05]
[1747005825960,3.99329127,2504.2,2504.1,0.876]
[1747005826254,3.99329127,2504.2,2504.1,0.05]
[1747005828658,3.97751392,2504.2,2504.1,0.05]
[1747005830722,3.97751392,2504.2,2504.1,0.16711389]
[1747005831564,3.99308317,2504.4,2504.2,0.8102]
[1747005831761,2.21746142,2504.8,2504.2,0.8102]
[1747005831961,3.99196194,2505.1,2504.4,0.8102]
[1747005832165,3.99181822,2505.2,2504.6,0.8102]
[1747005832552,6.65034444,2505.3,2504.7,0.11770058]
[1747005832756,3.99181655,2505.2,2504.8,0.7663]
[1747005833150,3.99181655,2505.2,2504.9,0.11770058]
[1747005833457,2.65872282,2505.4,2505.0,0.7663]
[1747005833625,6.65018207,2505.4,2505.0,8.7663]
[1747005833831,6.65018207,2505.4,2505.1,0.10903783]
[1747005835063,2.65872282,2505.4,2505.2,0.7574]
[1747005835657,3.99074147,2505.8,2505.3,0.10903783]
[1747005835972,3.99153793,2505.3,2505.2,0.7574]
[1747005836853,3.99169875,2505.2,2504.9,2.589]
[1747005837058,3.99169875,2505.2,2505.0,8.0]
[1747005838778,3.99135425,2505.5,2505.1,0.7719]
[1747005838980,3.99081672,2505.8,2505.1,1.90799]
[1747005839186,3.99092015,2505.7,2505.2,0.7719]
[1747005839340,2.17236142,2506.1,2505.3,0.03991305]
[1747005839547,3.99066242,2505.9,2505.4,0.7719]
[1747005839885,4.76236102,2506.3,2505.6,8.0]
[1747005840081,3.99024032,2506.2,2505.8,0.7719]
[1747005840282,2.01619366,2506.3,2505.8,0.7719]
[1747005840580,2.01619366,2506.3,2505.6,8.0]
[1747005840581,3.99085349,2505.8,2505.6,8.7719]
[1747005840781,3.99031717,2506.1,2505.6,8.7719]
[1747005840948,4.76196337,2506.6,2505.7,0.88308097]
[1747005841287,0.7929,2506.8,2505.9,0.8097]
[1747005841448,3.98970667,2506.5,2506.0,2.62889918]
[1747005841781,3.98970667,2506.5,2506.2,8.0]
[1747005841942,3.98933375,2506.7,2506.3,0.8097]
[1747005842591,3.98933375,2506.7,2506.3,0.84959614]
[1747005842904,3.98913833,2506.9,2506.3,0.84959614]
[1747005843191,3.98900443,2506.9,2506.3,0.84959614]
[1747005843395,3.98869172,2507.1,2506.5,8.0]
[1747005843564,3.98903027,2506.9,2506.3,1.94205749]
[1747005843744,3.98903027,2506.9,2506.5,8.0]
[1747005843949,3.98868251,2507.1,2506.6,8.032783]
[1747005844288,0.05,2507.4,2507.1,3.988682]
[1747005844493,3.98913167,2506.9,2506.8,8.0]
[1747005845114,3.98899038,2506.9,2506.8,8.0]
[1747005845605,3.98853198,2507.2,2507.0,15.97784]
[1747005845900,3.98853198,2507.2,2506.8,8.0946152]
[1747005846099,3.98853198,2507.2,2506.8,8.03988685]
[1747005846304,3.98853198,2507.2,2506.9,0.09457017]
[1747005846510,3.98839536,2507.3,2506.9,0.09457017]
[1747005846664,3.988354,2507.3,2506.9,0.09457017]
[1747005846866,0.4038354,2507.3,2506.9,0.09457017]
[1747005847894,3.98883127,2507.0,2506.9,0.09457017]
[1747005849209,3.98914951,2506.8,2506.7,10.587]
[1747005849815,3.98930865,2506.7,2506.6,11.3618]
[1747005850225,3.98899038,2506.9,2506.8,12.5867]
[1747005850396,3.98892745,2507.0,2506.7,8.0]
[1747005850825,0.05,2507.4,2506.8,0.97426896]
[1747005851036,0.05,2507.4,2507.0,0.8178]
[1747005851200,0.05,2507.4,2507.3,0.8178]
[1747005851382,0.05,2507.4,2507.3,56.160951]
[1747005851577,0.05,2507.4,2507.3,11.4048]
[1747005852006,0.05,2507.4,2507.3,61.9048]
[1747005852210,0.05,2507.4,2507.3,66.00702751]
[1747005852687,0.05,2507.4,2507.3,15.50702751]
[1747005852925,0.05,2507.4,2507.3,11.4048]
[1747005854522,0.05,2507.4,2507.3,61.9048]
[1747005854707,0.05,2507.4,2507.3,11.4048]
[1747005855126,0.05,2508.4,2507.5,2.77212156]
[1747005855336,0.05,2508.4,2507.7,8.7732]
[1747005855530,4.03669536,2508.4,2507.9,8.0]
[1747005855734,0.05,2508.4,2508.1,8.0]
[1747005855945,0.05,2508.4,2508.3,8.0]
[1747005856099,0.05,2508.4,2508.3,12.78274]
[1747005856303,0.05,2508.4,2508.3,14.0726721]
[1747005858151,3.98692289,2508.2,2508.1,8.11658097]
[1747005858306,3.98692289,2508.2,2508.1,0.11658097]
[1747005858505,3.98692289,2508.2,2508.1,10.70258097]
[1747005859819,3.98680054,2508.3,2508.1,10.70258097]
[1747005860039,3.98680054,2508.3,2508.1,12.03133907]
[1747005860335,3.98683949,2508.3,2508.1,12.03133907]
[1747005860855,3.98692289,2508.2,2508.1,0.11658097]
[1747005861152,3.98940097,2506.7,2505.5,0.8267]
[1747005861461,3.98803589,2507.5,2505.5,0.8267]
[1747005861462,3.98956944,2506.6,2505.5,0.8267]
[1747005861636,3.98970134,2506.5,2505.5,0.8267]
[1747005861949,7.70004871,2506.8,2505.5,0.8267]
[1747005862149,3.99080841,2505.8,2505.5,2.585]
[1747005862547,3.99099761,2505.7,2505.5,2.585]
[1747005863239,3.99099761,2505.7,2505.6,10.012639]
[1747005863445,3.99079742,2505.8,2505.7,2.115022]
[1747005864093,3.99079742,2505.8,2505.6,2.804639]
[1747005864245,3.9906428,2505.9,2505.6,8.0]
[1747005864446,3.99090074,2505.7,2505.6,8.0]
[1747005864982,3.99112659,2505.6,2505.2,0.7639]
[1747005865193,3.99121931,2505.5,2505.3,5.215]
[1747005865349,3.99109026,2505.6,2505.3,5.215]
[1747005865551,3.99109026,2505.6,2505.4,8.0]
[1747005866153,3.99109026,2505.6,2505.5,0.08224426]
[1747005866755,0.7844,2505.7,2505.2,2.586]
[1747005866970,0.7844,2505.7,2505.3,0.09376426]
[1747005867296,3.99137862,2505.4,2505.3,8.0]
[1747005867588,0.7844,2505.7,2505.1,8.05]
[1747005867891,3.99169726,2505.2,2505.1,2.636]
[1747005868099,3.99169726,2505.2,2505.1,3.2436]
[1747005868295,3.99169726,2505.2,2505.1,0.05]
[1747005870051,5.31179726,2505.2,2505.1,0.05]
[1747005875208,6.11179726,2505.2,2505.1,0.05]
[1747005875399,6.07905851,2505.2,2505.1,0.05]
[1747005877018,5.52905851,2505.2,2505.1,0.05]
[1747005878900,3.73936452,2505.9,2505.2,5.529058]
[1747005879210,3.73936452,2505.9,2505.1,0.8105]
[1747005879211,3.99168712,2505.3,2505.1,0.8105]
[1747005879684,3.99168712,2505.3,2505.2,8.0]
[1747005881027,3.99140053,2505.4,2505.3,8.0]
[1747005881242,3.99140053,2505.4,2505.1,0.8105]
[1747005881243,3.9915558,2505.3,2505.1,0.8105]
[1747005881389,3.99169726,2505.2,2505.1,0.8105]
[1747005881724,3.9915861,2505.3,2505.2,8.0]
[1747005881896,3.99169726,2505.2,2505.1,0.8105]
[1747005882235,3.99169726,2505.2,2505.1,8.8105]
[1747005882412,3.99169726,2505.2,2505.1,0.8105]
[1747005882626,3.99169726,2505.2,2505.1,3.115363]
[1747005882798,3.99169726,2505.2,2505.1,0.8105]
[1747005883004,3.99169726,2505.2,2505.1,2.983]
[1747005884941,3.99169726,2505.2,2505.1,0.8105]
[1747005886609,3.99160399,2505.3,2505.2,11.991697]
[1747005886811,3.99126749,2505.5,2505.3,3.8148]
[1747005887010,3.99153793,2505.3,2505.2,8.0]
[1747005888623,3.99087595,2505.8,2505.5,8.0]
[1747005888823,3.99087595,2505.8,2505.4,4.705428]
[1747005888824,3.99098525,2505.7,2505.2,8.0]
[1747005889049,3.99098525,2505.7,2505.2,10.98876192]
[1747005889360,3.99084765,2505.8,2505.4,8.0]
[1747005889562,3.99093284,2505.7,2505.4,0.03990975]
[1747005889728,3.99093284,2505.7,2505.5,3.21073]
[1747005890782,3.99093284,2505.7,2505.6,0.09795419]
[1747005891137,3.99093284,2505.7,2505.4,0.03990975]
[1747005891339,3.99093284,2505.7,2505.5,3.30908619]
[1747005891587,3.99093284,2505.7,2505.5,0.09795419]
[1747005891956,3.99093284,2505.7,2505.6,2.1093]
[1747005892359,3.99093284,2505.7,2505.6,0.09795419]
[1747005892567,3.99093284,2505.7,2505.6,2.20725419]
[1747005892768,3.99093284,2505.7,2505.6,0.09795419]
[1747005892963,3.99026375,2506.1,2505.7,2.29308]
[1747005893179,0.8207,2506.2,2505.8,0.09795419]
[1747005893381,3.99101716,2505.7,2505.4,0.79240973]
[1747005893554,3.99101716,2505.7,2505.5,2.63632819]
[1747005893759,3.99075127,2505.8,2505.5,0.09795419]
[1747005893959,3.99098521,2505.7,2505.5,0.09795419]
[1747005898594,3.99106002,2505.6,2505.5,0.09795419]
[1747005900191,3.99106002,2505.6,2505.5,8.09795419]
[1747005900391,3.99098998,2505.7,2505.5,8.09795419]
[1747005901530,3.99106002,2505.6,2505.5,8.09795419]
[1747005902743,3.99102524,2505.7,2505.5,8.09795419]
[1747005904620,3.99106002,2505.6,2505.5,8.09795419]
[1747005905384,3.99106002,2505.6,2505.5,0.09795419]
[1747005905671,3.99169726,2505.2,2505.1,2.659]
[1747005905875,3.99169726,2505.2,2505.1,0.05]
[1747005906020,5.25589081,2505.2,2505.1,0.05]
[1747005906420,5.45782528,2505.2,2505.1,0.05]
[1747005906672,6.00782528,2505.2,2505.1,0.05]
[1747005908049,5.45782528,2505.2,2505.1,0.05]
[1747005912681,5.23409081,2505.2,2505.1,0.05]
[1747005912995,3.99169726,2505.2,2505.1,0.05]
[1747005915298,0.8033,2505.5,2505.1,0.05]
[1747005915501,3.99146322,2505.4,2505.1,0.14357725]
[1747005915716,3.99100333,2505.7,2505.1,0.05]
[1747005915919,0.8151,2506.0,2505.7,3.991003]
[1747005916220,3.99068603,2505.9,2505.8,0.09208985]
[1747005916380,3.99068603,2505.9,2505.5,0.8331]
[1747005916575,3.99068603,2505.9,2505.6,0.09208985]
[1747005917080,0.7789,2506.6,2506.2,8.0]
[1747005917307,3.98983978,2506.4,2506.0,0.786]
[1747005917517,3.98978893,2506.4,2506.0,0.786]
[1747005917722,3.98974034,2506.5,2506.1,0.09208985]
[1747005917875,3.98981159,2506.4,2506.1,0.09208985]
[1747005919079,3.98995243,2506.3,2506.1,0.09208985]
[1747005919418,3.99010454,2506.2,2506.1,0.09208985]
[1747005921042,3.9894678,2506.6,2506.1,0.09208985]
[1747005921333,3.98914951,2506.8,2506.1,1.0197992]
[1747005921544,4.74508227,2507.3,2506.3,0.7972]
[1747005921836,3.98851308,2507.2,2506.9,0.7972]
[1747005921996,3.98842426,2507.3,2506.9,0.7972]
[1747005922537,3.98796874,2507.6,2507.1,8.0]
[1747005922683,3.98635754,2508.6,2507.1,9.40576498]
[1747005922684,2.91226452,2508.2,2507.1,9.40576498]
[1747005923050,3.98797015,2507.6,2507.2,0.08033467]
[1747005923325,3.98806291,2507.5,2507.2,0.08033467]
[1747005923685,3.98724082,2508.0,2507.2,0.08033467]
[1747005923885,3.98804856,2507.5,2507.2,0.08033467]
[1747005925100,3.98791826,2507.6,2507.2,0.08033467]
[1747005925929,3.98808915,2507.5,2507.2,0.08033467]
[1747005927183,3.98819494,2507.4,2507.1,8.0]
[1747005927384,3.988354,2507.3,2507.2,2.589]
[1747005928197,3.98827721,2507.4,2507.3,8.0]
[1747005928413,3.98797542,2507.6,2507.2,2.589]
[1747005928734,3.98778038,2507.7,2507.3,1.8153]
[1747005929441,3.98789858,2507.6,2507.3,1.8153]
[1747005930412,3.98772646,2507.7,2507.3,1.8153]
[1747005931002,3.98789278,2507.6,2507.3,1.8153]
[1747005932825,3.98764503,2507.8,2507.3,1.8153]
[1747005933025,3.98775274,2507.7,2507.4,0.48429468]
[1747005933329,3.98775274,2507.7,2507.4,0.44441812]
[1747005933821,3.98740319,2507.9,2507.4,0.44441812]
[1747005934330,3.98758445,2507.8,2507.4,0.484295]
[1747005934541,3.98758445,2507.8,2507.4,0.44441812]
[1747005934688,3.98758445,2507.8,2507.5,0.22597181]
[1747005935201,3.98758445,2507.8,2507.7,8.0]
[1747005939085,3.98803589,2507.5,2507.0,0.7733]
[1747005939266,3.98926485,2506.8,2506.7,2.588]
[1747005939410,3.98907312,2506.9,2506.8,11.554322]
[1747005939622,3.98907312,2506.9,2506.8,8.0]
[1747005940045,3.98874316,2507.1,2506.8,8.0]
[1747005940430,3.988354,2507.3,2506.8,9.43471799]
[1747005940613,3.98853719,2507.2,2506.8,9.39483]
[1747005940812,3.98853719,2507.2,2506.9,6.257481]
[1747005942554,3.98869169,2507.1,2506.9,6.257481]
[1747005942751,3.98869169,2507.1,2506.9,6.305019]
[1747005943128,2.91226452,2507.6,2506.9,8.1338039]
[1747005943459,0.7694,2507.7,2506.9,9.86867]
[1747005943766,3.98811705,2507.5,2507.0,0.7675]
[1747005944054,3.98829843,2507.4,2507.0,0.7675]
[1747005948150,3.98829843,2507.4,2507.0,1.3675]
[1747005948312,3.98829843,2507.4,2507.0,2.30425]
[1747005949014,3.68416452,2507.9,2507.0,2.30425]
[1747005949547,3.98819549,2507.4,2507.0,2.30425]
[1747005949747,3.98836089,2507.3,2507.2,8.0]
[1747005949958,3.98836089,2507.3,2507.2,10.587]
[1747005951096,3.98826356,2507.4,2507.2,10.587]
[1747005951262,3.98826356,2507.4,2507.2,12.058075]
[1747005951601,3.98812163,2507.5,2507.2,12.058075]
[1747005952375,3.98820704,2507.4,2507.3,8.0]
[1747005960471,3.98779387,2507.7,2507.3,8.7717]
[1747005960679,3.98683446,2508.3,2507.4,0.03988074]
[1747005960907,3.98708185,2508.1,2507.4,1.83973881]
[1747005961230,3.98658712,2508.5,2507.4,1.83973881]
[1747005961231,0.8256,2508.9,2508.2,5.216364]
[1747005961378,0.8256,2508.9,2508.3,29.90292202]
[1747005961580,4.03503533,2509.4,2508.3,29.663059]
[1747005961788,3.98533685,2509.2,2508.3,33.5366349]
[1747005962032,0.769,2509.3,2508.3,33.5366349]
[1747005962330,3.98553812,2509.1,2508.3,32.7413819]
[1747005962491,3.98557363,2509.1,2508.3,32.7413819]
[1747005963038,4.03506337,2509.4,2508.3,19.58188491]
[1747005963204,4.03506337,2509.4,2508.3,20.13188491]
[1747005963205,0.05,2509.4,2508.3,20.13188491]
[1747005963410,4.03502207,2509.4,2508.3,18.1975759]
[1747005963727,4.03502207,2509.4,2508.3,68.6975759]
[1747005963937,0.05,2509.4,2508.4,8.55]
[1747005964103,3.98517514,2509.3,2508.6,8.0]
[1747005964301,3.98547532,2509.2,2508.6,8.0]
[1747005964632,3.98517514,2509.3,2508.6,8.0]
[1747005964825,3.985475,2509.2,2508.8,8.0]
[1747005965330,0.05,2509.4,2508.5,9.3927]
[1747005965500,3.9852605,2509.3,2508.6,9.95927]
[1747005965693,3.9852605,2509.3,2508.8,8.0]
[1747005965889,0.8113,2509.4,2508.8,8.0]
[1747005966095,3.98581051,2508.9,2508.8,10.586]
[1747005966431,3.98581051,2508.9,2508.8,13.172]
[1747005966636,3.98570885,2509.0,2508.9,8.0]
[1747005966802,3.98570885,2509.0,2508.9,2.586]
[1747005967196,3.98538905,2509.2,2508.9,2.586]
[1747005967417,3.98565165,2509.0,2508.9,2.586]
[1747005968001,3.98565165,2509.0,2508.6,9.95927]
[1747005968299,3.98565165,2509.0,2508.7,14.306197]
[1747005968633,3.98596938,2508.8,2508.5,13.171]
[1747005969446,0.7873,2508.9,2508.6,4.310064]
[1747005969604,0.7873,2508.9,2508.5,13.171]
[1747005969942,4.77314385,2508.9,2508.5,13.171]
[1747005970107,4.77314385,2508.9,2508.5,14.4881]
[1747005970303,3.98628717,2508.6,2508.5,2.586]
[1747005970505,3.98618386,2508.7,2508.5,5.171]
[1747005970840,4.76097083,2509.2,2508.7,11.986183]
[1747005971139,3.9856084,2509.1,2508.7,8.0]
[1747005971341,0.7756,2509.2,2508.7,9.3171]
[1747005971744,0.05,2509.4,2508.8,24.56508275]
[1747005972039,0.05,2509.4,2508.9,0.6]
[1747005972247,0.05,2509.4,2509.0,0.8199]
[1747005972403,0.05,2509.4,2509.2,8.0]
[1747005972607,0.05,2509.4,2509.2,9.39909]
[1747005973102,3.98517514,2509.3,2509.2,8.0]
[1747005973309,3.98616975,2508.7,2508.5,0.6]
[1747005973539,3.98616975,2508.7,2508.6,2.654045]
[1747005973710,3.98616975,2508.7,2508.6,8.0]
[1747005973902,3.98616975,2508.7,2508.6,10.654045]
[1747005974344,3.98616975,2508.7,2508.5,8.0]
[1747005975146,3.98628717,2508.6,2508.5,8.0]
[1747005975484,3.98619388,2508.7,2508.5,8.0]
[1747005976339,3.98615816,2508.7,2508.5,8.0]
[1747005976638,3.98628717,2508.6,2508.5,8.0]
[1747005976853,3.98618681,2508.7,2508.5,8.0]
[1747005977441,3.98604916,2508.8,2508.5,8.0]
[1747005977629,4.74566862,2508.9,2508.5,9.3171]
[1747005977827,4.74566862,2508.9,2508.5,8.0]
[1747005978542,3.98605526,2508.8,2508.5,8.0]
[1747005978920,3.98598493,2508.8,2508.5,8.0]
[1747005979559,3.98613909,2508.7,2508.5,8.0]
[1747005980482,0.7961,2509.1,2508.5,8.0]
[1747005980483,3.98597045,2508.8,2508.5,8.0]
[1747005980847,0.7961,2509.1,2508.5,8.0]
[1747005981056,3.98620722,2508.7,2508.5,8.0]
[1747005981746,3.98536111,2509.2,2508.8,13.181195]
[1747005981747,3.98565611,2509.0,2508.8,13.181195]
[1747005981948,3.98565611,2509.0,2508.5,8.0]
[1747005982983,3.98577492,2509.0,2508.5,8.0]
[1747005983180,3.98584134,2508.9,2508.6,1.3171]
[1747005983347,4.78131639,2509.3,2508.8,8.0]
[1747005983548,4.78131639,2509.3,2508.6,1.9171]
[1747005983768,3.98607683,2508.8,2508.6,0.6]
[1747005984316,3.98590968,2508.9,2508.6,0.6]
[1747005984963,3.98598255,2508.8,2508.6,0.6]
[1747005985163,3.98612827,2508.7,2508.6,0.6]
[1747005985365,3.98612827,2508.7,2508.5,8.0]
[1747005986091,3.98628717,2508.6,2508.5,8.0]
[1747005988075,3.98628717,2508.6,2508.5,10.584]
[1747005988456,3.98620893,2508.7,2508.5,10.584]
[1747005990797,3.98628717,2508.6,2508.5,10.584]
[1747005991671,3.98621785,2508.7,2508.5,10.584]
[1747005992080,3.98621785,2508.7,2508.5,8.0]
[1747005992594,3.98628717,2508.6,2508.5,8.0]
[1747005994806,0.8034,2509.4,2509.0,12.772528]
[1747005995008,0.05,2509.4,2509.2,8.0]
[1747005995304,0.05,2509.4,2509.3,13.991476]
[1747005995869,0.05,2509.4,2509.3,13.125831]
[1747005997301,0.05,2509.4,2509.3,12.354831]
[1747005997503,0.05,2509.4,2509.3,13.0400941]
[1747005997703,0.05,2509.4,2509.3,10.584]
[1747005997872,4.03501633,2509.4,2509.3,13.577405]
[1747005998073,4.03501633,2509.4,2509.3,10.584]
[1747005998607,0.05,2509.4,2509.3,12.6624]
[1747005999368,4.03501633,2509.4,2509.3,12.6624]
[1747005999571,4.03501633,2509.4,2509.3,10.584]
[1747006000176,0.05,2509.4,2509.3,12.678]
[1747006000372,0.05,2509.4,2509.3,34.611387]
[1747006000791,0.05,2509.4,2509.3,33.087439]
[1747006000998,0.05,2509.4,2509.3,11.8998]
[1747006001275,0.05,2509.4,2509.3,16.969284]
[1747006002877,0.05,2509.4,2509.3,14.386284]
[1747006003203,0.05,2509.4,2509.3,19.553284]
[1747006004981,0.05,2509.4,2509.3,17.705373]
[1747006006618,0.05,2509.4,2509.3,15.2783]
[1747006007051,0.05,2509.4,2509.3,32.688386]
[1747006007340,0.05,2509.4,2509.3,27.612547]
[1747006011643,0.05,2509.4,2509.3,15.2783]
[1747006011841,0.05,2509.4,2509.3,31.878649]
[1747006012044,0.05,2509.4,2509.3,29.216649]
[1747006012211,0.05,2509.4,2509.3,15.400697]
[1747006012411,0.05,2509.4,2509.3,17.738122]
[1747006012612,0.05,2509.4,2509.3,13.167]
[1747006012943,0.05,2509.4,2509.3,15.278222]
[1747006013852,0.05,2509.4,2509.3,12.695222]
[1747006014148,0.05,2509.4,2509.3,14.4955222]
[1747006014316,0.05,2509.4,2509.3,13.166]
[1747006014512,0.05,2509.4,2509.3,15.277222]
[1747006017416,0.05,2509.4,2509.3,13.166]
[1747006018128,0.05,2509.4,2508.8,1.401]
[1747006018314,4.03509484,2509.4,2509.2,2.582]
[1747006018651,4.03509484,2509.4,2509.3,10.111178]
[1747006018855,4.03509484,2509.4,2509.3,8.0]
[1747006019821,3.98567234,2509.0,2508.8,1.401]
[1747006020060,3.98567234,2509.0,2508.9,5.251325]
[1747006020360,3.98567234,2509.0,2508.9,10.669325]
[1747006022060,3.98567234,2509.0,2508.5,15.1208]
[1747006022219,3.9859569,2508.9,2508.5,16.63288]
[1747006022421,3.9859569,2508.9,2508.6,18.590292]
[1747006022649,3.9859569,2508.9,2508.8,8.0]
[1747006023177,5.38223995,2509.3,2508.8,8.0]
[1747006023178,3.9854127,2509.2,2508.8,8.0]
[1747006024165,0.05,2509.4,2509.0,0.7746]
[1747006024324,0.05,2509.4,2509.2,8.0]
[1747006024525,0.05,2509.4,2509.3,10.64579]
[1747006024750,4.03501633,2509.4,2509.3,10.64579]
[1747006025064,4.03501633,2509.4,2509.3,10.24579]
[1747006025360,4.03501633,2509.4,2509.3,8.0]
[1747006025786,4.03501633,2509.4,2509.3,10.24579]
[1747006026591,4.03501633,2509.4,2509.3,12.82779]
[1747006027087,4.03501633,2509.4,2509.3,10.582]
[1747006027484,0.05,2509.4,2509.3,10.582]
[1747006027701,4.03501633,2509.4,2509.3,10.582]
[1747006029547,4.85981633,2509.4,2509.3,8.0]
[1747006033273,3.98517514,2509.3,2508.7,2.583]
[1747006033478,3.98596938,2508.8,2508.7,2.581]
[1747006033688,3.98596938,2508.8,2508.7,10.581]
[1747006034271,3.98596938,2508.8,2508.7,8.0]
[1747006036401,3.985671,2509.0,2508.8,8.0]
[1747006036587,3.98555773,2509.1,2508.7,0.8031]
[1747006036977,3.98566918,2509.0,2508.7,0.8031]
[1747006037209,3.98552377,2509.1,2508.7,0.8031]
[1747006037404,3.98567997,2509.0,2508.7,0.8031]
[1747006037607,3.98567997,2509.0,2508.7,1.68739588]
[1747006038126,2.17545849,2509.3,2508.7,1.68739588]
[1747006038336,3.98584523,2508.9,2508.7,0.8031]
[1747006038705,3.98572223,2509.0,2508.7,0.8031]
[1747006039296,3.98553948,2509.1,2508.7,0.8031]
[1747006040018,3.98565886,2509.0,2508.7,0.8031]
[1747006042329,3.98582933,2508.9,2508.7,0.8031]
[1747006044020,3.98570503,2509.0,2508.7,1.68341]
[1747006044324,3.98565165,2509.0,2508.5,1.408]
[1747006044537,3.98565165,2509.0,2508.8,8.0]
[1747006046237,3.98581051,2508.9,2508.8,8.0]
[1747006048945,3.98709841,2508.1,2507.8,0.7798]
[1747006049244,3.98730764,2508.0,2507.6,3.3902]
[1747006049542,3.9871402,2508.1,2507.7,8.0]
[1747006049925,0.8263,2508.3,2507.7,8.0]
[1747006050109,3.98726649,2508.0,2507.7,8.0]
[1747006050310,3.98755881,2507.8,2507.7,9.45712]
[1747006050619,4.81309764,2508.3,2507.6,0.8092]
[1747006050833,3.98763519,2507.8,2507.7,2.581]
[1747006051046,3.98763519,2507.8,2507.7,5.322543]
[1747006051249,3.98763519,2507.8,2507.7,2.581]
[1747006051445,3.98763519,2507.8,2507.7,5.168962]
[1747006051743,3.98742192,2507.9,2507.7,5.168962]
[1747006051919,3.98755881,2507.8,2507.7,2.581]
[1747006053205,3.98771782,2507.7,2507.6,8.0]
[1747006053434,3.98771782,2507.7,2507.6,10.581]
[1747006054149,3.98731183,2508.0,2507.9,8.0]
[1747006054325,3.98731183,2508.0,2507.9,4.83498]
[1747006054526,3.98731183,2508.0,2507.9,8.0]
[1747006054722,3.98731183,2508.0,2507.9,12.83498]
[1747006054930,0.7905,2508.6,2507.9,12.83498]
[1747006055140,3.98660671,2508.4,2508.0,1.32336487]
[1747006055325,3.98654221,2508.5,2508.2,8.0]
[1747006056031,3.98654221,2508.5,2508.4,8.0]
[1747006056238,3.98654221,2508.5,2508.2,8.0]
[1747006056748,3.98662924,2508.4,2508.2,8.0]
[1747006057864,3.98653022,2508.5,2508.2,8.0]
[1747006058023,3.98662279,2508.4,2508.2,9.1865498]
[1747006058359,3.98676394,2508.3,2508.2,8.0]
[1747006059857,3.98669737,2508.4,2508.2,8.0]
[1747006060064,3.98669737,2508.4,2508.2,10.581]
[1747006060936,3.98676394,2508.3,2508.2,10.581]
[1747006061866,3.98667622,2508.4,2508.2,10.581]
[1747006062069,3.98667622,2508.4,2508.2,11.6419164]
[1747006062254,3.98676394,2508.3,2508.2,10.581]
[1747006062750,3.98666032,2508.4,2508.2,10.581]
[1747006064777,3.98627902,2508.7,2508.3,0.8161]
[1747006064954,3.98640168,2508.6,2508.3,0.8161]
[1747006065149,3.98618745,2508.7,2508.3,0.8161]
[1747006065354,3.98636372,2508.6,2508.3,2.21401]
[1747006065691,3.98647334,2508.5,2508.3,8.8161]
[1747006067176,3.98647334,2508.5,2508.4,10.10137]
[1747006067340,3.986605,2508.4,2508.3,8.0]
[1747006067541,3.986605,2508.4,2508.3,2.581]
[1747006068190,3.98692289,2508.2,2508.1,10.582]
[1747006068338,3.98692289,2508.2,2508.1,8.0]
[1747006068540,3.98684017,2508.3,2508.2,8.0]
[1747006069394,3.98666896,2508.4,2508.3,3.98684]
[1747006069561,3.98677858,2508.3,2508.0,8.0]
[1747006069763,3.98677858,2508.3,2508.0,9.3163]
[1747006070981,0.8303,2508.7,2507.7,9.4304]
[1747006071169,3.98697158,2508.2,2507.7,13.9924]
[1747006071378,3.98680698,2508.3,2507.7,13.9924]
[1747006072686,3.98783154,2507.7,2507.4,1.3626]
[1747006072844,3.98798468,2507.6,2507.4,1.3626]
[1747006073045,3.98773304,2507.7,2507.4,0.6]
[1747006073271,3.98787685,2507.6,2507.4,8.6]
[1747006074171,0.8038,2507.8,2507.2,0.7626]
[1747006074347,3.98787685,2507.6,2506.9,1.3626]
[1747006074567,3.98771782,2507.7,2506.9,1.3626]
[1747006074897,3.98852646,2507.2,2506.9,1.3626]
[1747006075397,3.9884115,2507.3,2506.9,1.3626]
[1747006075590,3.9884115,2507.3,2507.0,8.0]
[1747006075785,3.98854021,2507.2,2507.0,8.0]
[1747006075963,3.9884379,2507.3,2507.0,8.0]
[1747006079505,3.98789713,2507.6,2507.0,8.0]
[1747006079801,0.8038,2507.8,2507.1,0.7956]
[1747006079991,4.79138056,2507.8,2507.1,0.7956]
[1747006080369,5.41044235,2507.8,2507.1,0.7956]
[1747006080698,6.80967972,2507.8,2507.1,0.7956]
[1747006080999,3.988332,2507.4,2507.1,0.7956]
[1747006081762,0.8038,2507.8,2507.1,0.83548123]
[1747006081987,3.98779365,2507.7,2507.1,0.83548123]
[1747006082190,0.7561,2508.2,2507.3,0.8018]
[1747006082386,3.98728781,2508.0,2507.5,0.8018]
[1747006082696,3.98734542,2508.0,2507.7,8.0]
[1747006083204,3.98755881,2507.8,2507.7,8.0]
[1747006083922,3.98755881,2507.8,2507.4,2.581]
[1747006083923,3.98803589,2507.5,2507.4,2.581]
[1747006084113,3.98803589,2507.5,2507.4,10.581]
[1747006084810,3.98792677,2507.6,2507.5,8.0]
[1747006086132,3.98803589,2507.5,2507.4,2.581]
[1747006087291,0.8161,2507.9,2507.4,2.581]
[1747006087487,3.98768858,2507.8,2507.4,2.581]
[1747006087730,3.98768858,2507.8,2507.5,0.7816]
[1747006087903,3.98751446,2507.9,2507.5,0.7816]
[1747006088255,3.98751446,2507.9,2507.8,8.0]
[1747006099662,3.98729928,2508.0,2507.5,8.0]
[1747006101166,3.98711145,2508.1,2507.5,8.0]
[1747006101167,3.98698094,2508.2,2507.5,8.0]
[1747006101320,0.7734,2509.0,2508.4,6.204017]
[1747006101520,0.7734,2509.0,2508.4,0.03986392]
[1747006101760,3.98574321,2509.0,2508.4,0.03986392]
[1747006102063,3.98634833,2508.6,2508.3,0.7556]
[1747006102652,3.93618373,2508.7,2508.3,0.7556]
[1747006103462,3.98634974,2508.6,2508.3,0.7556]
[1747006104871,3.98619904,2508.7,2508.3,0.7556]
[1747006105170,3.98619904,2508.7,2508.3,2.14726]